fUST/lending_fUST_20240227
["ID","MTS","AMOUNT","RATE_DAILY","PERIOD"]
[315448891,1709040644380,-500.0,0.0002,2]
[315448892,1709040644392,-500.0,0.0002,2]
[315448893,1709040644401,-500.0,0.0002,2]
[315448894,1709040644412,-1761.275863,0.0002,2]
[315448895,1709040644421,-1779.05,0.0002,2]
[315448896,1709040644430,-1761.275863,0.0002,2]
[315448898,1709040644439,-500.0,0.0002,2]
[315448900,1709040644448,-500.0,0.0002,2]
[315448902,1709040644457,-500.0,0.0002,2]
[315448903,1709040644467,-1709.43,0.0002,2]
[315448904,1709040644476,-1646.5,0.0002,2]
[315448905,1709040644485,-500.0,0.0002,2]
[315448906,1709040644494,-500.0,0.0002,2]
[315448907,1709040644503,-500.0,0.0002,2]
[315448908,1709040644512,-933.68,0.0002,2]
[315448909,1709040644521,-151.200963,0.0002,2]
[315448910,1709040644621,-500.0,0.0002,2]
[315448911,1709040644630,-500.0,0.0002,2]
[315448912,1709040644639,-8125.58,0.0002,2]
[315448913,1709040644649,-500.0,0.0002,2]
[315448914,1709040644658,-1079.81,0.0002,2]
[315448915,1709040644669,-500.0,0.0002,2]
[315448916,1709040644678,-500.0,0.0002,2]
[315448917,1709040644687,-4875.58,0.0002,2]
[315448918,1709040644696,-500.0,0.0002,2]
[315448919,1709040644706,-359.265299,0.0002,2]
[315448920,1709040644715,-500.0,0.0002,2]
[315448921,1709040644724,-1268.72,0.0002,2]
[315448922,1709040644734,-359.265299,0.0002,2]
[315448923,1709040644743,-500.0,0.0002,2]
[315448924,1709040644753,-4070.76,0.0002,2]
[315448925,1709040644762,-794.33,0.0002,2]
[315448926,1709040644772,-501.97109407,0.0002,2]
[315448927,1709040644781,-3224.92,0.0002,2]
[315448928,1709040644790,-1866.34,0.0002,2]
[315448929,1709040644799,-500.0,0.0002,2]
[315448930,1709040644809,-500.0,0.0002,2]
[315448931,1709040644818,-1024.55,0.0002,2]
[315448932,1709040644827,-500.0,0.0002,2]
[315448933,1709040644837,-924.69,0.0002,2]
[315448934,1709040644846,-500.0,0.0002,2]
[315448935,1709040644855,-500.0,0.0002,2]
[315448936,1709040644865,-1859.71,0.0002,2]
[315448937,1709040644874,-500.0,0.0002,2]
[315448938,1709040644883,-500.0,0.0002,2]
[315448939,1709040644893,-575.07,0.0002,2]
[315448940,1709040644902,-500.0,0.0002,2]
[315448941,1709040644912,-500.0,0.0002,2]
[315448942,1709040644921,-2425.74,0.0002,2]
[315448943,1709040644930,-515.5973225,0.0002,2]
[315448944,1709040644939,-151.0,0.0002,2]
[315448945,1709040644948,-2007.56,0.0002,2]
[315448946,1709040644957,-398.21029264,0.0002,2]
[315448947,1709040644967,-22073.2,0.0002,2]
[315448948,1709040644976,-1468.54,0.0002,2]
[315448949,1709040644986,-500.96626582,0.0002,2]
[315448950,1709040644995,-500.0,0.0002,2]
[315448951,1709040645004,-500.0,0.0002,2]
[315448952,1709040645013,-500.0,0.0002,2]
[315448953,1709040645022,-501.22134572,0.0002,2]
[315448954,1709040645031,-2799.0,0.0002,2]
[315448955,1709040645041,-500.0,0.0002,2]
[315448956,1709040645050,-9589.16,0.0002,2]
[315448957,1709040645059,-1686.36,0.0002,2]
[315448958,1709040645068,-500.0,0.0002,2]
[315448959,1709040645078,-534.55314206,0.0002,2]
[315448960,1709040645087,-500.0,0.0002,2]
[315448961,1709040645097,-4961.94,0.0002,2]
[315448962,1709040645108,-500.0,0.0002,2]
[315448963,1709040645121,-500.0,0.0002,2]
[315448964,1709040645130,-500.0,0.0002,2]
[315448965,1709040645140,-664.45,0.0002,2]
[315448966,1709040645150,-500.0,0.0002,2]
[315448967,1709040645159,-500.0,0.0002,2]
[315448968,1709040645170,-3964.53,0.0002,2]
[315448969,1709040645179,-500.0,0.0002,2]
[315448970,1709040645189,-449.86323283,0.0002,2]
[315448971,1709040645198,-500.0,0.0002,2]
[315448972,1709040645209,-1526.23,0.0002,2]
[315448973,1709040645218,-500.0,0.0002,2]
[315448974,1709040645227,-737.59,0.0002,2]
[315448975,1709040645236,-4950.93,0.0002,2]
[315448976,1709040645245,-21080.95,0.0002,2]
[315448977,1709040645255,-201.08560763,0.0002,2]
[315448978,1709040645264,-2345.68554267,0.0002004,2]
[315448979,1709040645274,-500.0,0.0002007,2]
[315448980,1709040645283,-166.666666,0.00020076,2]
[315448981,1709040645292,-153.0,0.0002011,2]
[315448982,1709040645302,-500.0,0.00020173,2]
[315448983,1709040645311,-2345.68554267,0.00020212,2]
[315448984,1709040645320,-96072.54768136,0.00020266,2]
[315448985,1709040645329,-283.867504,0.00020266,2]
[315448986,1709040645338,-283.867504,0.00020266,2]
[315448987,1709040645347,-151.0,0.00020266,2]
[315448988,1709040645357,-151.0,0.00020266,2]
[315448989,1709040645366,-774.84501772,0.00020271,2]
[315448990,1709040645375,-160.0,0.00020272,2]
[315448991,1709040645385,-719.9,0.00020273,2]
[315448992,1709040645395,-500.0,0.00020273,2]
[315448993,1709040645405,-691.26,0.00020273,2]
[315448994,1709040645417,-500.0,0.00020273,2]
[315448995,1709040645427,-500.0,0.00020273,2]
[315448996,1709040645437,-500.0,0.00020273,2]
[315448997,1709040645446,-500.0,0.00020273,2]
[315448998,1709040645456,-424.47686139,0.00020273,2]
[315448999,1709040645465,-500.0,0.00020273,2]
[315449000,1709040645475,-637.48,0.00020273,2]
[315449001,1709040645484,-500.0,0.00020273,2]
[315449002,1709040645493,-686.19,0.00020273,2]
[315449003,1709040645503,-843.21,0.00020273,2]
[315449004,1709040645512,-500.0,0.00020273,2]
[315449005,1709040645522,-1450.64,0.00020273,2]
[315449006,1709040645531,-500.0,0.00020273,2]
[315449007,1709040645540,-500.0,0.00020273,2]
[315449008,1709040645550,-500.0,0.00020273,2]
[315449009,1709040645560,-500.0,0.00020273,2]
[315449010,1709040645570,-500.0,0.00020273,2]
[315449011,1709040645579,-500.0,0.00020273,2]
[315449012,1709040645588,-3773.3,0.00020273,2]
[315449013,1709040645598,-333.04255885,0.00020273,2]
[315449014,1709040645607,-569.39,0.00020273,2]
[315449015,1709040645617,-1645.82,0.00020273,2]
[315449016,1709040645626,-500.0,0.00020273,2]
[315449017,1709040645636,-2652.4,0.00020273,2]
[315449018,1709040645646,-633.28076739,0.00020273,2]
[315449019,1709040645655,-500.0,0.00020273,2]
[315449020,1709040645669,-500.0,0.00020273,2]
[315449021,1709040645678,-500.0,0.00020273,2]
[315449022,1709040645688,-500.0,0.00020273,2]
[315449023,1709040645697,-500.0,0.00020273,2]
[315449024,1709040645707,-500.0,0.00020273,2]
[315449025,1709040645715,-1761.275863,0.00020273,2]
[315449026,1709040645725,-1779.05,0.00020273,2]
[315449027,1709040645735,-1761.275863,0.00020273,2]
[315449028,1709040645746,-500.0,0.00020273,2]
[315449029,1709040645755,-500.0,0.00020273,2]
[315449030,1709040645764,-1709.43,0.00020273,2]
[315449031,1709040645774,-1646.5,0.00020273,2]
[315449032,1709040645783,-500.0,0.00020273,2]
[315449033,1709040645792,-500.0,0.00020273,2]
[315449034,1709040645801,-500.0,0.00020273,2]
[315449035,1709040645810,-933.68,0.00020273,2]
[315449036,1709040645820,-317.207108,0.00020273,2]
[315449037,1709040645829,-8125.58,0.00020273,2]
[315449038,1709040645838,-500.0,0.00020273,2]
[315449039,1709040645848,-1079.81,0.00020273,2]
[315449040,1709040645857,-500.0,0.00020273,2]
[315449041,1709040645867,-500.0,0.00020273,2]
[315449042,1709040645876,-4875.58,0.00020273,2]
[315449043,1709040645885,-500.0,0.00020273,2]
[315449044,1709040645894,-359.265299,0.00020273,2]
[315449045,1709040645904,-527.94508633,0.00020273,2]
[315449046,1709040645915,-1268.72,0.00020273,2]
[315449047,1709040645925,-359.265299,0.00020273,2]
[315449048,1709040645934,-500.0,0.00020273,2]
[315449050,1709040645944,-4070.76,0.00020273,2]
[315449052,1709040645953,-794.33,0.00020273,2]
[315449053,1709040645963,-3224.92,0.00020273,2]
[315449055,1709040645972,-1866.34,0.00020273,2]
[315449056,1709040645981,-500.0,0.00020273,2]
[315449059,1709040645990,-500.0,0.00020273,2]
[315449061,1709040646000,-1024.55,0.00020273,2]
[315449064,1709040646008,-500.0,0.00020273,2]
[315449066,1709040646018,-924.69,0.00020273,2]
[315449068,1709040646027,-500.0,0.00020273,2]
[315449070,1709040646036,-500.0,0.00020273,2]
[315449072,1709040646046,-1859.71,0.00020273,2]
[315449076,1709040646055,-500.0,0.00020273,2]
[315449079,1709040646064,-500.0,0.00020273,2]
[315449083,1709040646073,-575.07,0.00020273,2]
[315449087,1709040646082,-500.0,0.00020273,2]
[315449091,1709040646091,-500.0,0.00020273,2]
[315449095,1709040646101,-2425.74,0.00020273,2]
[315449099,1709040646112,-2007.56,0.00020273,2]
[315449103,1709040646121,-22073.2,0.00020273,2]
[315449105,1709040646132,-1468.54,0.00020273,2]
[315449109,1709040646141,-500.0,0.00020273,2]
[315449113,1709040646150,-512.84941791,0.00020273,2]
[315449117,1709040646159,-500.0,0.00020273,2]
[315449121,1709040646172,-2799.0,0.00020273,2]
[315449124,1709040646180,-500.0,0.00020273,2]
[315449128,1709040646190,-9589.16,0.00020273,2]
[315449132,1709040646199,-1686.36,0.00020273,2]
[315449136,1709040646211,-500.0,0.00020273,2]
[315449140,1709040646220,-500.0,0.00020273,2]
[315449143,1709040646229,-4961.94,0.00020273,2]
[315449147,1709040646239,-500.0,0.00020273,2]
[315449151,1709040646249,-500.0,0.00020273,2]
[315449155,1709040646259,-501.12415207,0.00020273,2]
[315449158,1709040646269,-664.45,0.00020273,2]
[315449162,1709040646279,-500.0,0.00020273,2]
[315449166,1709040646289,-500.0,0.00020273,2]
[315449170,1709040646300,-3964.53,0.00020273,2]
[315449174,1709040646310,-500.0,0.00020273,2]
[315449177,1709040646320,-500.0,0.00020273,2]
[315449180,1709040646330,-1526.23,0.00020273,2]
[315449183,1709040646340,-500.0,0.00020273,2]
[315449185,1709040646350,-737.59,0.00020273,2]
[315449187,1709040646360,-4950.93,0.00020273,2]
[315449189,1709040646369,-21080.95,0.00020273,2]
[315449191,1709040646379,-500.0,0.00020276,2]
[315449193,1709040646389,-200.6117409,0.00020288,2]
[315449195,1709040646398,-200.6117409,0.000203,2]
[315449197,1709040646407,-200.6117409,0.000203,2]
[315449199,1709040646420,-153.0,0.00020301,2]
[315449201,1709040646430,-153.0,0.00020301,2]
[315449203,1709040646439,-153.0,0.00020301,2]
[315449205,1709040646449,-153.0,0.00020301,2]
[315449207,1709040646459,-153.0,0.00020301,2]
[315449209,1709040646468,-153.0,0.00020301,2]
[315449210,1709040646477,-153.0,0.00020301,2]
[315449211,1709040646487,-153.0,0.00020301,2]
[315449212,1709040646497,-500.0,0.00020379,2]
[315449213,1709040646506,-2345.68554267,0.00020384,2]
[315449214,1709040646516,-153.0,0.00020412,2]
[315449216,1709040646525,-153.0,0.00020412,2]
[315449217,1709040646534,-153.0,0.00020412,2]
[315449218,1709040646543,-153.0,0.00020412,2]
[315449219,1709040646552,-153.0,0.00020412,2]
[315449221,1709040646563,-235.4847455,0.00020412,2]
[315449222,1709040646578,-484.48,0.00020438,3]
[315449223,1709040646589,-150.316,0.00020451,2]
[315449224,1709040646600,-5000.0,0.00020471,5]
[315449226,1709040646610,-5000.0,0.00020471,5]
[315449227,1709040646620,-5000.0,0.00020471,5]
[315449228,1709040646630,-42367.70177245,0.00020471,5]
[315449229,1709040646639,-5000.0,0.00020471,5]
[315449230,1709040646648,-2767.46821757,0.00020471,3]
[315449231,1709040646657,-5000.0,0.00020471,5]
[315449232,1709040646669,-5000.0,0.00020471,5]
[315449233,1709040646678,-5000.0,0.00020471,5]
[315449234,1709040646689,-5000.0,0.00020471,5]
[315449236,1709040646699,-5000.0,0.00020471,5]
[315449238,1709040646708,-2942.14362801,0.00020471,5]
[315449240,1709040646731,-2057.85637199,0.00020471,5]
[315449241,1709040646740,-5000.0,0.00020471,5]
[315449243,1709040646749,-5000.0,0.00020471,5]
[315449244,1709040646759,-151.144151,0.00020471,2]
[315449245,1709040646769,-57782.00977716,0.00020471,5]
[315449246,1709040646781,-608.44889679,0.00020471,5]
[315449247,1709040646790,-277.142699,0.00020471,2]
[315449248,1709040646800,-248.463446,0.00020471,2]
[315449250,1709040646809,-32564.2428612,0.00020471,4]
[315449251,1709040646818,-283.867504,0.00020471,2]
[315449252,1709040646827,-283.867504,0.00020471,2]
[315449253,1709040646837,-283.867504,0.00020471,2]
[315449255,1709040646847,-283.867504,0.00020471,2]
[315449256,1709040646858,-151.0,0.00020471,2]
[315449257,1709040646867,-151.0,0.00020471,2]
[315449259,1709040646966,-5000.0,0.00020471,5]
[315449260,1709040646975,-5000.0,0.00020471,5]
[315449261,1709040646984,-2334.72270059,0.00020471,5]
[315449262,1709040646997,-2665.27729941,0.00020471,5]
[315449264,1709040647007,-1761.275863,0.00020471,2]
[315449265,1709040647016,-1761.275863,0.00020471,2]
[315449266,1709040647026,-4027.09272565,0.00020471,5]
[315449270,1709040647294,-629.45402286,0.00019078,2]
[315449272,1709040647304,-40666.83736673,0.00020471,5]
[315449274,1709040647314,-359.265299,0.00020471,2]
[315449276,1709040647324,-359.265299,0.00020471,2]
[315449278,1709040647334,-359.265299,0.00020471,2]
[315449280,1709040647343,-359.265299,0.00020471,2]
[315449281,1709040647352,-151.0,0.00020471,2]
[315449283,1709040647361,-151.0,0.00020471,2]
[315449285,1709040647371,-5000.0,0.00020471,5]
[315449287,1709040647380,-5000.0,0.00020471,5]
[315449289,1709040647389,-4166.16726821,0.00020479,5]
[315449290,1709040647402,-45833.83273179,0.00020479,5]
[315449291,1709040647411,-1761.275863,0.00020479,2]
[315449292,1709040647421,-1761.275863,0.00020479,2]
[315449293,1709040647432,-500.0,0.00020482,2]
[315449294,1709040647442,-26493.66250011,0.00020499,3]
[315449295,1709040647464,-626.05340804,0.00020499,3]
[315449305,1709040647594,-5854.60519358,0.00020499,3]
[315449312,1709040647663,-3300.0,0.00018484,2]
[315449320,1709040647839,-908.21571175,0.00018484,2]
[315449321,1709040647851,-738.53529334,0.00018484,2]
[315449322,1709040647862,-1714.89,0.00018484,2]
[315449323,1709040647875,-18238.35899491,0.00018484,2]
[315449325,1709040647885,-280.14317129,0.000194,2]
[315449328,1709040647894,-629.45402282,0.00019401,2]
[315449329,1709040647904,-629.45402282,0.00019725,2]
[315449331,1709040647914,-7362.93945816,0.00019725,2]
[315449332,1709040647923,-153.0,0.000198,2]
[315449334,1709040647932,-629.45402282,0.00020048,2]
[315449336,1709040647941,-7155.72549745,0.00020499,3]
[315449342,1709040647991,-9869.95340082,0.00020499,3]
[315449344,1709040648000,-7932.32568463,0.00020499,3]
[315449347,1709040648014,-35267.78605547,0.00020499,3]
[315451365,1709040957246,174.110609,0.00030959,120]
[315451384,1709041177888,21569.3064524,0.00017656,2]
[315451424,1709041560732,376.0573731,0.00017263,2]
[315451433,1709041585984,280.14317129,0.000179,2]
[315451439,1709041604473,151.0,0.000177,2]
[315451446,1709041634307,10240.51583584,0.000179,2]
[315451447,1709041665982,24900.0,0.00017867,2]
[315451464,1709041799579,148.43645481,0.000327,120]
[315451466,1709041825548,203.074047,0.000309,120]
[315451506,1709041834067,-155.20176229,0.00017905,2]
[315451507,1709041834076,-798.96247013,0.00017905,2]
[315451508,1709041834106,-1080.08370695,0.00017905,2]
[315451509,1709041834115,-2573.28620982,0.00017906,2]
[315451510,1709041834124,-267.416678,0.00017907,2]
[315451511,1709041834133,-500.0,0.00018799,2]
[315451512,1709041834142,-6840.45144589,0.000188,2]
[315451513,1709041834154,-1072.24035272,0.000188,2]
[315451514,1709041834165,-670.80087435,0.000188,2]
[315451617,1709041837755,-48159.70736703,0.000188,2]
[315451619,1709041837765,-500.0,0.00018854,2]
[315451621,1709041837775,-1124.23810631,0.000189,2]
[315451623,1709041837785,-486.79569354,0.00018909,2]
[315451625,1709041837794,-76571.93966645,0.00018968,2]
[315451628,1709041837803,-357.07738328,0.00018976,2]
[315451630,1709041837813,-219.49785021,0.00018977,2]
[315451632,1709041837822,-276000.0,0.00018978,2]
[315451634,1709041837831,-1519.40144155,0.00019077,2]
[315451636,1709041837840,-500.0,0.00019178,2]
[315451638,1709041837850,-450.13004601,0.00019178,2]
[315451640,1709041837859,-657.59,0.00019178,2]
[315451642,1709041837868,-500.0,0.00019178,2]
[315451644,1709041837878,-237.52081382,0.00019178,2]
[315451646,1709041837887,-988.43,0.00019178,2]
[315451648,1709041837896,-1390.2,0.00019178,2]
[315451650,1709041837905,-500.0,0.00019178,2]
[315451652,1709041837914,-500.0,0.00019178,2]
[315451654,1709041837924,-500.0,0.00019178,2]
[315451656,1709041837933,-1000.0,0.00019178,2]
[315451658,1709041837944,-500.0,0.00019178,2]
[315451660,1709041837953,-500.0,0.00019178,2]
[315451662,1709041837961,-522.5209825,0.00019178,2]
[315451664,1709041837971,-500.0,0.00019178,2]
[315451666,1709041837986,-500.0,0.00019178,2]
[315451668,1709041837995,-500.0,0.00019178,2]
[315451671,1709041838005,-528.2173094,0.00019178,2]
[315451672,1709041838014,-500.0,0.00019178,2]
[315451673,1709041838024,-500.0,0.00019178,2]
[315451674,1709041838033,-500.0,0.00019178,2]
[315451675,1709041838043,-500.0,0.00019178,2]
[315451676,1709041838051,-500.0,0.00019178,2]
[315451677,1709041838061,-500.0,0.00019178,2]
[315451678,1709041838070,-500.0,0.00019178,2]
[315451679,1709041838079,-515.4162061,0.00019178,2]
[315451680,1709041838088,-500.0,0.00019178,2]
[315451681,1709041838098,-187.73483971,0.00019178,2]
[315451682,1709041838107,-500.0,0.00019178,2]
[315451683,1709041838116,-500.0,0.00019178,2]
[315451684,1709041838125,-500.0,0.00019178,2]
[315451685,1709041838135,-159.02038948,0.00019178,2]
[315451686,1709041838144,-500.0,0.00019178,2]
[315451687,1709041838153,-500.0,0.00019178,2]
[315451688,1709041838162,-500.0,0.00019178,2]
[315451689,1709041838171,-500.0,0.00019178,2]
[315451690,1709041838180,-500.0,0.00019178,2]
[315451691,1709041838190,-500.0,0.00019178,2]
[315451692,1709041838199,-500.0,0.00019178,2]
[315451693,1709041838208,-500.0,0.00019178,2]
[315451694,1709041838217,-843.21,0.00019178,2]
[315451695,1709041838226,-500.0,0.00019178,2]
[315451696,1709041838244,-500.0,0.00019178,2]
[315451697,1709041838256,-500.0,0.00019178,2]
[315451698,1709041838266,-341.5224866,0.00019178,2]
[315451699,1709041838275,-500.0,0.00019178,2]
[315451700,1709041838285,-500.0,0.00019178,2]
[315451701,1709041838295,-500.0,0.00019178,2]
[315451702,1709041838304,-629.6441881,0.00019178,2]
[315451703,1709041838314,-500.0,0.00019178,2]
[315451704,1709041838324,-500.0,0.00019178,2]
[315451705,1709041838334,-500.0,0.00019178,2]
[315451706,1709041838343,-500.0,0.00019178,2]
[315451707,1709041838353,-500.0,0.00019178,2]
[315451708,1709041838363,-500.0,0.00019178,2]
[315451709,1709041838373,-1507.06,0.00019178,2]
[315451710,1709041838383,-500.0,0.00019178,2]
[315451711,1709041838393,-500.0,0.00019178,2]
[315451712,1709041838403,-500.0,0.00019178,2]
[315451713,1709041838412,-500.0,0.00019178,2]
[315451714,1709041838422,-500.0,0.00019178,2]
[315451715,1709041838431,-500.0,0.00019178,2]
[315451716,1709041838442,-500.0,0.00019178,2]
[315451717,1709041838452,-500.0,0.00019178,2]
[315451718,1709041838461,-500.0,0.00019178,2]
[315451719,1709041838471,-500.0,0.00019178,2]
[315451720,1709041838482,-640.88483016,0.00019178,2]
[315451721,1709041838492,-500.0,0.00019178,2]
[315451722,1709041838501,-500.0,0.00019178,2]
[315451723,1709041838512,-500.0,0.00019178,2]
[315451724,1709041838522,-500.0,0.00019178,2]
[315451725,1709041838531,-500.0,0.00019178,2]
[315451726,1709041838686,-500.0,0.00019178,2]
[315451727,1709041838698,-500.0,0.00019178,2]
[315451728,1709041838708,-500.0,0.00019178,2]
[315451729,1709041838717,-500.0,0.00019178,2]
[315451730,1709041838726,-500.0,0.00019178,2]
[315451731,1709041838736,-500.0,0.00019178,2]
[315451732,1709041838745,-500.0,0.00019178,2]
[315451733,1709041838755,-500.0,0.00019178,2]
[315451734,1709041838766,-1779.05,0.00019178,2]
[315451735,1709041838775,-500.0,0.00019178,2]
[315451736,1709041838784,-500.0,0.00019178,2]
[315451737,1709041838793,-500.0,0.00019178,2]
[315451738,1709041838802,-500.0,0.00019178,2]
[315451739,1709041838811,-500.0,0.00019178,2]
[315451740,1709041838820,-500.0,0.00019178,2]
[315451741,1709041838829,-1709.43,0.00019178,2]
[315451742,1709041838839,-500.0,0.00019178,2]
[315451743,1709041838848,-1526.23,0.00019178,2]
[315451744,1709041838857,-500.0,0.00019178,2]
[315451745,1709041838866,-395.16181797,0.00019178,2]
[315451746,1709041838875,-500.0,0.00019178,2]
[315451747,1709041838885,-500.0,0.00019178,2]
[315451748,1709041838895,-500.0,0.00019178,2]
[315451749,1709041838904,-500.0,0.00019178,2]
[315451750,1709041838914,-426.50033035,0.00019178,2]
[315451751,1709041838924,-500.0,0.00019178,2]
[315451752,1709041838933,-500.0,0.00019178,2]
[315451753,1709041838946,-376.53396052,0.00019178,2]
[315451754,1709041838955,-500.0,0.00019178,2]
[315451755,1709041838965,-500.0,0.00019178,2]
[315451756,1709041838976,-500.0,0.00019178,2]
[315451757,1709041838986,-155.0,0.00019178,2]
[315451758,1709041838995,-500.0,0.00019178,2]
[315451759,1709041839005,-1024.55,0.00019178,2]
[315451760,1709041839014,-582.24951827,0.00019178,2]
[315451761,1709041839024,-500.0,0.00019178,2]
[315451762,1709041839035,-500.0,0.00019178,2]
[315451763,1709041839044,-500.0,0.00019178,2]
[315451764,1709041839054,-500.0,0.00019178,2]
[315451765,1709041839063,-788.5,0.00019178,2]
[315451766,1709041839072,-500.0,0.00019178,2]
[315451767,1709041839082,-665.43,0.00019178,2]
[315451768,1709041839091,-501.3868524,0.00019178,2]
[315451769,1709041839101,-500.0,0.00019178,2]
[315451770,1709041839111,-500.0,0.00019178,2]
[315451771,1709041839120,-961.34,0.00019178,2]
[315451772,1709041839131,-500.0,0.00019178,2]
[315451773,1709041839141,-500.0,0.00019178,2]
[315451775,1709041839150,-501.06312451,0.00019178,2]
[315451776,1709041839160,-5073.56,0.00019178,2]
[315451777,1709041839169,-500.0,0.00019178,2]
[315451778,1709041839178,-500.0,0.00019178,2]
[315451779,1709041839187,-500.0,0.00019178,2]
[315451780,1709041839201,-4248.45,0.00019178,2]
[315451781,1709041839210,-500.0,0.00019178,2]
[315451782,1709041839220,-500.0,0.00019178,2]
[315451783,1709041839229,-3025.13,0.00019178,2]
[315451784,1709041839238,-500.67580525,0.00019178,2]
[315451785,1709041839247,-3362.47,0.00019178,2]
[315451786,1709041839256,-340.24388928,0.00019178,2]
[315451787,1709041839265,-500.0,0.00019178,2]
[315451788,1709041839275,-500.0,0.00019178,2]
[315451789,1709041839284,-500.0,0.00019178,2]
[315451790,1709041839293,-500.0,0.00019178,2]
[315451791,1709041839303,-503.86862046,0.00019178,2]
[315451792,1709041839313,-500.0,0.00019178,2]
[315451793,1709041839322,-500.0,0.00019178,2]
[315451794,1709041839331,-862.76,0.00019178,2]
[315451795,1709041839341,-500.0,0.00019178,2]
[315451796,1709041839350,-500.0,0.00019178,2]
[315451797,1709041839360,-500.0,0.00019178,2]
[315451798,1709041839370,-500.0,0.00019178,2]
[315451799,1709041839379,-2031.26,0.00019178,2]
[315451800,1709041839388,-500.0,0.00019178,2]
[315451801,1709041839398,-786.48,0.00019178,2]
[315451802,1709041839407,-500.0,0.00019178,2]
[315451803,1709041839416,-2118.34,0.00019178,2]
[315451804,1709041839426,-500.0,0.00019178,2]
[315451805,1709041839435,-502.22643844,0.00019178,2]
[315451806,1709041839447,-500.0,0.00019178,2]
[315451807,1709041839456,-500.0,0.00019178,2]
[315451808,1709041839465,-500.0,0.00019178,2]
[315451809,1709041839476,-500.0,0.00019178,2]
[315451810,1709041839485,-500.0,0.00019178,2]
[315451811,1709041839495,-500.0,0.00019178,2]
[315451812,1709041839504,-500.0,0.00019178,2]
[315451813,1709041839515,-500.0,0.00019178,2]
[315451814,1709041839525,-500.0,0.00019178,2]
[315451815,1709041839534,-500.0,0.00019178,2]
[315451816,1709041839543,-10448.94,0.00019178,2]
[315451817,1709041839553,-500.0,0.00019178,2]
[315451818,1709041839562,-500.0,0.00019178,2]
[315451819,1709041839572,-500.0,0.00019178,2]
[315451820,1709041839581,-500.0,0.00019178,2]
[315451821,1709041839591,-500.0,0.00019178,2]
[315451822,1709041839601,-298.46954899,0.00019178,2]
[315451823,1709041839610,-2528.87,0.00019178,2]
[315451824,1709041839620,-22967.27,0.00019178,2]
[315451825,1709041839630,-600.07,0.00019178,2]
[315451826,1709041839640,-5404.61,0.00019178,2]
[315451827,1709041839650,-334.51167567,0.00019178,2]
[315451828,1709041839659,-500.0,0.00019178,2]
[315451829,1709041839669,-500.0,0.00019178,2]
[315451830,1709041839678,-443.86900434,0.00019178,2]
[315451831,1709041839688,-748.37,0.00019178,2]
[315451832,1709041839702,-502.16545605,0.00019178,2]
[315451833,1709041839711,-500.0,0.00019178,2]
[315451834,1709041839720,-621.63,0.00019178,2]
[315451835,1709041839729,-2093.03,0.00019178,2]
[315451836,1709041839738,-500.0,0.00019178,2]
[315451837,1709041839748,-500.0,0.00019178,2]
[315451838,1709041839757,-500.0,0.00019178,2]